bitfinex/quotes_SOLUSD_20250514
["timestamp","ask_amount","ask_price","bid_price","bid_amount"]
[1747188158916,17.66550787,182.56,182.51,17.66550787]
[1747188159108,17.66550787,182.55,182.46,26.0]
[1747188159309,17.66550787,182.54,182.46,26.0]
[1747188159835,26.0,182.55,182.43,6.2913]
[1747188160129,26.0,182.55,182.36,8.95286386]
[1747188160130,17.66550787,182.45,182.39,17.66550787]
[1747188160641,23.19696454,182.44,182.38,17.71571043]
[1747188160958,26.0,182.43,182.37,41.58]
[1747188161533,17.72532115,182.38,182.37,41.58]
[1747188161831,17.72532115,182.38,182.36,8.95286386]
[1747188162052,43.72532115,182.43,182.36,8.95286386]
[1747188162053,17.72532115,182.39,182.36,8.95286386]
[1747188162260,17.72532115,182.38,182.36,8.95286386]
[1747188162441,5.483358,182.37,182.36,8.95286386]
[1747188164055,23.20867915,182.37,182.36,8.95286386]
[1747188164427,13.70589759,182.41,182.36,8.95286386]
[1747188164750,17.72532115,182.39,182.36,8.95286386]
[1747188164935,17.72532115,182.37,182.36,8.95286386]
[1747188165458,0.28432314,182.41,182.36,8.95286386]
[1747188165633,17.72532115,182.37,182.36,8.95286386]
[1747188166354,26.0,182.39,182.36,8.95286386]
[1747188166529,19.18859649,182.4,182.36,8.95286386]
[1747188167239,17.72878132,182.38,182.36,8.95286386]
[1747188167436,5.48245614,182.4,182.37,17.72878132]
[1747188167751,5.48245614,182.4,182.36,8.95286386]
[1747188168449,13.70400238,182.43,182.36,26.68164518]
[1747188168658,17.72878132,182.42,182.36,8.95286386]
[1747188169036,13.70400238,182.43,182.36,26.68164518]
[1747188169252,17.72878132,182.41,182.36,26.68164518]
[1747188169429,17.72878132,182.41,182.36,8.95286386]
[1747188169624,17.72878132,182.39,182.36,8.95286386]
[1747188169957,17.72878132,182.37,182.36,8.95286386]
[1747188170127,0.42648471,182.39,182.36,8.95286386]
[1747188170327,26.0,182.4,182.36,8.95286386]
[1747188170527,17.72878132,182.38,182.36,8.95286386]
[1747188170831,17.72878132,182.37,182.36,8.95286386]
[1747188171752,5.48275673,182.39,182.36,8.95286386]
[1747188172133,17.72878132,182.37,182.36,8.95286386]
[1747188172643,23.21213932,182.37,182.36,8.95286386]
[1747188173361,5.483358,182.37,182.36,8.95286386]
[1747188173534,23.21213932,182.37,182.36,8.95286386]
[1747188173737,5.483358,182.37,182.36,8.95286386]
[1747188173940,23.21213932,182.37,182.36,8.95286386]
[1747188174141,5.48275673,182.39,182.36,8.95286386]
[1747188174858,19.18567432,182.43,182.36,8.95286386]
[1747188175065,19.18567432,182.43,182.37,17.72878132]
[1747188175247,17.72878132,182.42,182.36,26.68164518]
[1747188175556,17.67394624,182.41,182.36,8.95286386]
[1747188175765,17.72878132,182.41,182.36,8.95286386]
[1747188176061,17.72617263,182.4,182.36,8.95286386]
[1747188176255,17.72617263,182.39,182.36,8.95286386]
[1747188176561,17.72617263,182.38,182.36,8.95286386]
[1747188176871,23.20953063,182.37,182.36,8.95286386]
[1747188178034,5.483358,182.37,182.36,8.95286386]
[1747188178234,23.20953063,182.37,182.36,8.95286386]
[1747188178673,19.18910129,182.4,182.36,8.95286386]
[1747188178969,5.48245614,182.4,182.36,8.95286386]
[1747188179153,19.18859649,182.4,182.36,8.95286386]
[1747188179462,17.72617263,182.37,182.36,8.95286386]
[1747188180863,5.48275673,182.39,182.36,8.95286386]
[1747188181067,23.20892936,182.39,182.36,8.95286386]
[1747188181378,26.0,182.36,182.25,6.0813]
[1747188181539,17.72617263,182.28,182.2,6.3472]
[1747188181734,17.72617263,182.29,182.2,6.3472]
[1747188181959,17.72617263,182.28,182.2,6.3472]
[1747188182162,17.72617263,182.28,182.2,33.864]
[1747188182366,26.0,182.31,182.15,6.1128]
[1747188182571,26.0,182.31,182.03,13.73350451]
[1747188182572,26.0,182.22,182.09,1.5168]
[1747188182942,19.20860544,182.21,182.09,1.5168]
[1747188183456,19.20860544,182.21,182.09,27.5168]
[1747188183953,36.93477807,182.21,182.11,26.0]
[1747188184277,19.20860544,182.21,182.11,26.0]
[1747188184607,5.48817298,182.21,182.09,1.5168]
[1747188184904,17.72617263,182.21,182.1,0.42648471]
[1747188185064,5.48726953,182.24,182.11,26.0]
[1747188185065,19.20544336,182.24,182.11,26.0]
[1747188185260,19.20544336,182.24,182.1,0.28432314]
[1747188185485,19.20544336,182.24,182.09,27.5168]
[1747188185666,19.20544336,182.24,182.14,17.72617263]
[1747188185861,19.20544336,182.24,182.09,27.5168]
[1747188186166,17.72617263,182.18,182.09,27.5168]
[1747188186387,19.20544336,182.24,182.09,27.5168]
[1747188186388,0.14216157,182.23,182.09,1.5168]
[1747188186691,0.42648471,182.23,182.12,17.72617263]
[1747188186868,5.4896794,182.16,182.09,1.5168]
[1747188187068,17.72617263,182.15,182.09,1.5168]
[1747188187296,23.21585203,182.16,182.1,17.72617263]
[1747188187467,5.4896794,182.16,182.1,17.72617263]
[1747188187670,17.72617263,182.18,182.09,1.5168]
[1747188187909,5.4884742,182.2,182.14,17.72617263]
[1747188188204,5.48802038,182.22,182.11,26.0]
[1747188188504,5.48802038,182.22,182.17,17.72617263]
[1747188188668,23.21419301,182.22,182.17,17.72617263]
[1747188188868,5.48802038,182.22,182.17,17.72617263]
[1747188189198,5.48636637,182.27,182.19,17.72617263]
[1747188189371,17.72617263,182.21,182.11,26.14216157]
[1747188189571,17.72617263,182.22,182.16,17.72617263]
[1747188189774,45.20228231,182.27,182.11,26.0]
[1747188189989,17.72617263,182.17,182.09,1.5168]
[1747188190176,26.0,182.22,182.09,1.5168]
[1747188190378,17.72617263,182.16,182.11,17.72617263]
[1747188190688,17.72617263,182.15,182.09,1.5168]
[1747188190865,17.72617263,182.15,182.1,17.72617263]
[1747188191066,26.0,182.22,182.09,1.5168]
[1747188191067,17.72617263,182.12,182.09,1.5168]
[1747188191298,19.2159877,182.14,182.09,1.5168]
[1747188191605,5.4899005,182.16,182.12,17.72617263]
[1747188191771,5.4899005,182.16,182.09,1.5168]
[1747188191967,5.4899005,182.16,182.13,17.72617263]
[1747188192293,19.20860544,182.21,182.11,26.0]
[1747188192482,17.72617263,182.19,182.11,26.0]
[1747188192684,19.20860544,182.21,182.13,17.72617263]
[1747188193070,5.48907673,182.18,182.14,17.72617263]
[1747188193487,5.48907673,182.18,182.11,26.0]
[1747188193488,5.48874538,182.2,182.16,17.72617263]
[1747188193806,5.48874538,182.2,182.17,17.72617263]
[1747188193969,17.72617263,182.19,182.11,26.28432314]
[1747188194165,17.72617263,182.19,182.11,26.0]
[1747188194371,17.72617263,182.17,182.12,17.72617263]
[1747188194672,19.20544336,182.24,182.12,26.0]
[1747188194896,17.72617263,182.21,182.12,26.0]
[1747188195205,5.4884742,182.2,182.16,17.72617263]
[1747188195570,5.4884742,182.2,182.12,3.29449941]
[1747188195895,17.72617263,182.2,182.15,17.72617263]
[1747188196096,17.72617263,182.2,182.11,26.0]
[1747188196279,17.72617263,182.16,182.09,1.5168]
[1747188196479,26.0,182.21,182.09,1.5168]
[1747188196805,17.72617263,182.14,182.09,19.24297263]
[1747188196985,5.49058364,182.13,182.09,19.24297263]
[1747188197168,5.49058364,182.13,182.09,1.5168]
[1747188197369,5.4896794,182.16,182.1,17.72617263]
[1747188197576,5.4896794,182.16,182.12,17.72617263]
[1747188197801,17.72617263,182.18,182.14,17.72617263]
[1747188197802,5.48933683,182.18,182.14,17.72617263]
[1747188197973,5.48933683,182.18,182.13,17.72617263]
[1747188198174,17.72617263,182.15,182.1,17.72617263]
[1747188198390,17.72617263,182.13,182.09,1.5168]
[1747188198905,17.72617263,182.14,182.09,19.24297263]
[1747188199113,5.49058364,182.13,182.09,1.5168]
[1747188199302,17.72617263,182.12,182.06,223.16617263]
[1747188199679,19.21704276,182.13,182.06,223.16617263]
[1747188199680,36.94321539,182.13,182.07,17.72617263]
[1747188199886,17.72617263,182.11,182.06,205.44]
[1747188200285,17.72617263,182.09,182.04,1.572]
[1747188200512,17.72617263,182.08,182.04,1.572]
[1747188200804,17.72617263,182.07,182.04,1.572]
[1747188201006,41.17937736,182.13,182.04,1.572]
[1747188201209,67.17937736,182.13,181.98,6.5011]
[1747188201507,0.14216157,182.12,182.02,17.72617263]
[1747188201687,43.95187477,182.13,182.01,26.0]
[1747188202002,43.95187477,182.13,182.04,17.72617263]
[1747188202202,34.22512916,182.13,182.01,26.0]
[1747188202388,16.49895653,182.13,182.01,26.0]
[1747188202577,13.72645912,182.13,182.08,17.72617263]
[1747188202774,13.72645912,182.13,182.03,0.28432314]
[1747188202994,27.4488767,182.16,182.05,17.72617263]
[1747188203208,17.72617263,182.13,182.08,17.72617263]
[1747188203373,17.72617263,182.12,182.02,1.5928]
[1747188203578,17.72617263,182.13,182.07,17.72617263]
[1747188203774,2.77551726,182.16,182.09,17.72617263]
[1747188204091,19.21071408,182.19,182.06,0.42648471]
[1747188204284,17.72617263,182.13,182.03,26.42648471]
[1747188204487,46.65459135,182.19,182.03,26.42648471]
[1747188204686,46.65459135,182.19,182.07,17.72617263]
[1747188205007,17.72617263,182.09,182.02,1.5928]
[1747188205188,17.72617263,182.07,182.02,1.5928]
[1747188205503,36.94849248,182.08,182.02,19.31897263]
[1747188205691,19.22231985,182.08,182.02,1.5928]
[1747188205893,36.94849248,182.08,182.03,17.72617263]
[1747188206102,36.94849248,182.08,182.02,1.5928]
[1747188206408,36.94849248,182.08,182.02,19.31897263]
[1747188206719,19.22231985,182.08,182.02,1.5928]
[1747188207221,19.22231985,182.08,182.04,17.72617263]
[1747188207386,36.94849248,182.08,182.03,17.72617263]
[1747188207581,36.94849248,182.08,182.02,1.5928]
[1747188207920,19.22231985,182.08,182.0,17.72617263]
[1747188208099,19.22231985,182.08,182.01,17.72617263]
[1747188208303,17.72617263,182.04,181.98,6.5011]
[1747188208492,19.22231985,182.08,181.98,6.5011]
[1747188208691,19.22231985,182.08,182.01,17.72617263]
[1747188208907,5.49209138,182.08,182.05,17.72617263]
[1747188209106,5.49148819,182.1,182.06,17.72617263]
[1747188209312,5.49148819,182.1,182.08,17.72617263]
[1747188209491,5.49148819,182.1,182.02,3.29634106]
[1747188209699,5.49148819,182.1,182.01,26.0]
[1747188209909,5.49058364,182.13,182.08,17.72617263]
[1747188210211,5.49058364,182.13,182.09,17.72617263]
[1747188210620,5.4896794,182.16,182.12,17.72617263]
[1747188210795,5.4896794,182.16,182.08,0.42648471]
[1747188210994,5.4896794,182.16,182.13,17.72617263]
[1747188211206,5.48937805,182.17,182.12,17.72617263]
[1747188211390,17.72617263,182.15,182.07,6.2457]
[1747188211586,17.72617263,182.16,182.11,17.72617263]
[1747188211820,36.93899581,182.17,182.07,49.97187263]
[1747188212125,17.72617263,182.16,182.07,32.2457]
[1747188212423,17.72617263,182.15,182.1,17.72617263]
[1747188212625,19.21282318,182.17,182.1,17.72617263]
[1747188212795,17.72617263,182.16,182.11,17.72617263]
[1747188213108,23.21494808,182.19,182.14,17.72617263]
[1747188213291,23.21494808,182.19,182.15,17.72617263]
[1747188213292,5.48877545,182.19,182.15,17.72617263]
[1747188213623,5.48877545,182.19,182.17,17.72617263]
[1747188213924,5.4878718,182.22,182.18,17.72617263]
[1747188214107,5.48696844,182.25,182.21,17.72617263]
[1747188214315,5.48696844,182.25,182.18,6.298]
[1747188214513,19.20438956,182.25,182.19,17.72617263]
[1747188214691,19.20438956,182.25,182.2,17.72617263]
[1747188214898,19.20438956,182.25,182.22,17.72617263]
[1747188215121,36.93056219,182.25,182.19,17.72617263]
[1747188215312,36.93056219,182.25,182.18,6.298]
[1747188215313,19.20438956,182.25,182.16,1.5954]
[1747188215492,17.72617263,182.2,182.14,43.72617263]
[1747188215697,36.93056219,182.25,182.13,24.13197263]
[1747188215906,26.0,182.22,182.14,17.72617263]
[1747188216302,17.72617263,182.2,182.14,17.72617263]
[1747188216702,17.72617263,182.19,182.14,17.72617263]
[1747188216902,17.72617263,182.2,182.14,17.72617263]
[1747188217324,5.48877545,182.19,182.14,17.72617263]
[1747188217515,5.48877545,182.19,182.16,17.72617263]
[1747188217823,5.48877545,182.19,182.13,6.4058]
[1747188218364,5.48666739,182.26,182.18,17.72617263]
[1747188218505,5.48666739,182.26,182.16,17.72617263]
[1747188218690,5.48666739,182.26,182.22,17.72617263]
[1747188219008,5.48666739,182.26,182.23,17.72617263]
[1747188219529,5.48606539,182.28,182.23,17.72617263]
[1747188219723,2.78232001,182.34,182.25,17.72617263]
[1747188219908,23.21073359,182.33,182.21,0.28432314]
[1747188220219,17.72617263,182.32,182.26,17.72617263]
[1747188220425,17.72617263,182.31,182.25,17.72617263]
[1747188220596,17.72617263,182.32,182.26,17.72617263]
[1747188220792,19.19596336,182.33,182.27,17.72617263]
[1747188220990,17.72617263,182.32,182.21,0.42648471]
[1747188221195,5.48456096,182.33,182.24,17.72617263]
[1747188221196,17.72617263,182.3,182.24,17.72617263]
[1747188221527,5.48576444,182.29,182.24,17.72617263]
[1747188221699,5.48576444,182.29,182.25,17.72617263]
[1747188222632,5.48486178,182.32,182.28,17.72617263]
[1747188222829,5.48395941,182.35,182.31,17.72617263]
[1747188223124,5.48275673,182.39,182.34,17.72617263]
[1747188223427,13.70675464,182.4,182.36,17.72617263]
[1747188223625,13.70675464,182.4,182.31,6.0463]
[1747188223801,5.48215558,182.41,182.35,17.72617263]
[1747188223997,19.18754453,182.41,182.36,17.72617263]
[1747188224236,45.18754453,182.41,182.37,17.72617263]
[1747188224602,5.48215558,182.41,182.38,17.72617263]
[1747188224798,5.48215558,182.41,182.34,17.72617263]
[1747188225138,17.72617263,182.4,182.31,6.0463]
[1747188225630,19.18964855,182.39,182.34,17.72617263]
[1747188225809,17.72617263,182.37,182.32,17.72617263]
[1747188226210,19.18964855,182.39,182.31,6.0463]
[1747188226420,17.72617263,182.38,182.31,6.0463]
[1747188226618,19.18964855,182.39,182.36,17.72617263]
[1747188226812,5.48275673,182.39,182.37,17.72617263]
[1747188227427,27.400328,182.48,182.38,17.72617263]
[1747188227743,17.72617263,182.44,182.38,17.72617263]
[1747188228122,17.72617263,182.43,182.32,0.42648471]
[1747188228331,17.72617263,182.43,182.37,17.72617263]
[1747188228537,26.0,182.47,182.39,17.72617263]
[1747188228929,17.72617263,182.45,182.39,17.72617263]
[1747188229840,36.91056201,182.44,182.39,17.72617263]
[1747188230044,36.91056201,182.44,182.42,17.72617263]
[1747188230045,5.48125411,182.44,182.42,17.72617263]
[1747188230547,5.48125411,182.44,182.43,17.72617263]
[1747188231110,19.17808218,182.5,182.43,17.72617263]
[1747188231334,19.17808218,182.5,182.46,17.72617263]
[1747188231546,17.72617263,182.49,182.4,1.5006]
[1747188231714,19.17808218,182.5,182.43,17.72617263]
[1747188231914,17.72617263,182.48,182.43,17.72617263]
[1747188232114,17.72617263,182.48,182.4,1.5006]
[1747188232115,17.72617263,182.45,182.4,1.5006]
[1747188232334,46.57534245,182.5,182.4,1.5006]
[1747188232643,17.72617263,182.46,182.4,1.5006]
[1747188232840,46.57534245,182.5,182.41,17.72617263]
[1747188233044,19.17808218,182.5,182.43,17.72617263]
[1747188233228,5.4800526,182.48,182.44,17.72617263]
[1747188233546,19.18018412,182.48,182.43,17.72617263]
[1747188233920,36.90635675,182.48,182.43,17.72617263]
[1747188234225,17.72617263,182.47,182.42,17.72617263]
[1747188234729,17.72617263,182.46,182.4,1.5006]
[1747188234918,17.72617263,182.45,182.4,19.22677263]
[1747188235120,19.18018412,182.48,182.4,19.22677263]
[1747188235322,5.48125411,182.44,182.4,1.5006]
[1747188235539,17.72617263,182.43,182.37,17.72617263]
[1747188235851,17.72617263,182.42,182.37,17.72617263]
[1747188236047,19.18438938,182.44,182.36,17.72617263]
[1747188236352,17.72617263,182.42,182.36,17.72617263]
[1747188236648,19.18438938,182.44,182.38,17.72617263]
[1747188236839,17.72617263,182.43,182.38,17.72617263]
[1747188237448,27.40036354,182.48,182.38,17.72617263]
[1747188237625,19.17913309,182.49,182.41,17.72617263]
[1747188237826,17.72617263,182.45,182.39,17.72617263]
[1747188238028,17.72617263,182.45,182.36,26.0]
[1747188238029,17.72617263,182.44,182.38,17.72617263]
[1747188238374,17.72617263,182.44,182.39,17.72617263]
[1747188238836,17.72617263,182.44,182.38,17.72617263]
[1747188239046,46.57789466,182.49,182.38,17.72617263]
[1747188239226,17.72617263,182.44,182.38,17.72617263]
[1747188239427,19.18544098,182.43,182.36,26.0]
[1747188239731,19.18544098,182.43,182.38,17.72617263]
[1747188239927,19.18544098,182.43,182.36,26.0]
[1747188240133,19.18544098,182.43,182.37,17.72617263]
[1747188240439,36.91161361,182.43,182.36,26.0]
[1747188240637,19.18544098,182.43,182.38,17.72617263]
[1747188240836,5.48155456,182.43,182.36,26.0]
[1747188241058,17.72617263,182.39,182.34,205.3]
[1747188241359,12.00422425,182.35,182.31,6.0463]
[1747188241670,5.48426017,182.34,182.3,1.587]
[1747188241829,12.00422425,182.32,182.27,18.54992425]
[1747188242030,31.19913485,182.34,182.29,12.00422425]
[1747188242336,12.00422425,182.4,182.33,12.00422425]
[1747188242554,5.48185505,182.42,182.29,26.0]
[1747188242555,5.48185505,182.42,182.34,12.00422425]
[1747188242746,12.00422425,182.4,182.35,12.00422425]
[1747188242941,5.48185505,182.42,182.36,12.00422425]
[1747188243156,5.48185505,182.42,182.38,12.00422425]
[1747188243452,5.48185505,182.42,182.37,12.00422425]
[1747188243642,12.00422425,182.4,182.34,13.63382425]
[1747188243841,12.00422425,182.39,182.34,1.6296]
[1747188244046,19.18649269,182.42,182.34,13.63382425]
[1747188244243,19.18649269,182.42,182.35,12.00422425]
[1747188244457,12.00422425,182.41,182.35,12.00422425]
[1747188244682,5.48185505,182.42,182.34,13.63382425]
[1747188244986,12.00422425,182.41,182.35,12.00422425]
[1747188245150,12.00422425,182.38,182.34,1.6296]
[1747188245351,12.00422425,182.35,182.29,1.5672]
[1747188245652,46.59576798,182.42,182.23,205.22]
[1747188245653,12.00422425,182.31,182.25,12.00422425]
[1747188245867,5.48486178,182.32,182.26,12.00422425]
[1747188246066,5.48486178,182.32,182.27,12.00422425]
[1747188246266,12.00422425,182.3,182.24,1.5672]
[1747188246584,5.48486178,182.32,182.29,12.00422425]
[1747188246777,5.48455984,182.34,182.3,12.00422425]
[1747188247077,5.48455984,182.34,182.25,12.00422425]
[1747188247078,5.48455984,182.34,182.28,26.0]
[1747188247281,5.48455984,182.34,182.3,12.00422425]
[1747188247577,12.00422425,182.36,182.31,12.00422425]
[1747188247770,19.18754453,182.41,182.32,12.00422425]
[1747188247974,12.00422425,182.36,182.28,26.0]
[1747188248345,46.59832244,182.41,182.3,12.00422425]
[1747188248675,46.59832244,182.41,182.32,12.00422425]
[1747188248990,12.00422425,182.39,182.34,12.00422425]
[1747188249174,12.00422425,182.38,182.28,26.0]
[1747188249376,12.00422425,182.38,182.33,12.00422425]
[1747188249588,12.00422425,182.38,182.32,12.00422425]
[1747188249589,5.48365869,182.36,182.32,12.00422425]
[1747188249880,13.70163323,182.46,182.35,12.00422425]
[1747188250062,12.00422425,182.44,182.38,12.00422425]
[1747188250263,12.00422425,182.44,182.39,12.00422425]
[1747188250472,19.18228652,182.46,182.38,12.00422425]
[1747188250852,12.00422425,182.43,182.34,1.6358]
[1747188251083,12.00422425,182.41,182.36,12.00422425]
[1747188251382,19.18228652,182.46,182.36,12.00422425]
[1747188251555,5.48275673,182.39,182.34,13.64002425]
[1747188251756,5.48275673,182.39,182.35,12.00422425]
[1747188251967,9.32320626,182.47,182.38,12.00422425]
[1747188251968,5.48185505,182.42,182.38,12.00422425]
[1747188253090,19.18228652,182.46,182.38,12.00422425]
[1747188253254,12.00422425,182.43,182.38,12.00422425]
[1747188253451,19.18228652,182.46,182.4,12.00422425]
[1747188253766,31.18651077,182.46,182.41,12.00422425]
[1747188254365,19.18228652,182.46,182.41,12.00422425]
[1747188254569,31.18651077,182.46,182.41,12.00422425]
[1747188254776,5.48065329,182.46,182.41,12.00422425]
[1747188254982,12.00422425,182.42,182.37,12.00422425]
[1747188255153,17.48637983,182.41,182.36,12.00422425]
[1747188255483,5.48215558,182.41,182.36,12.00422425]
[1747188256068,5.48215558,182.41,182.37,12.00422425]
[1747188256257,5.48215558,182.41,182.38,12.00422425]
[1747188256460,5.48215558,182.41,182.37,12.00422425]
[1747188257991,27.40326646,182.46,182.37,12.00422425]
[1747188258201,12.00422425,182.42,182.37,12.00422425]
[1747188258474,12.00422425,182.42,182.34,1.6358]
[1747188258691,12.00422425,182.42,182.37,12.00422425]
[1747188259055,12.00422425,182.4,182.34,13.64002425]
[1747188259359,12.00422425,182.41,182.36,12.00422425]
[1747188259785,27.40326646,182.46,182.36,12.00422425]
[1747188259982,19.18396033,182.45,182.37,12.00422425]
[1747188260183,12.00422425,182.42,182.37,12.00422425]
[1747188260365,12.00422425,182.42,182.36,12.00422425]
[1747188260683,12.00422425,182.42,182.34,1.6358]
[1747188260684,19.18396033,182.45,182.37,12.00422425]
[1747188260859,12.00422425,182.43,182.38,12.00422425]
[1747188261055,12.00422425,182.43,182.34,1.6358]
[1747188261056,19.18396033,182.45,182.4,12.00422425]
[1747188261300,5.48095368,182.45,182.43,12.00422425]
[1747188261593,19.17704464,182.51,182.44,12.00422425]
[1747188261884,8.27881701,182.51,182.48,12.00422425]
[1747188262057,5.47915182,182.51,182.48,12.00422425]
[1747188262259,5.47915182,182.51,182.5,12.00422425]
[1747188262561,5.47915182,182.51,182.49,12.00422425]
[1747188262954,19.16757939,182.6,182.5,12.00422425]
[1747188263160,19.16757939,182.6,182.52,12.00422425]
[1747188263454,12.00422425,182.53,182.44,1.5658]
[1747188263681,12.00422425,182.46,182.42,6.3598]
[1747188263996,26.0,182.54,182.43,12.00422425]
[1747188264289,12.00422425,182.45,182.4,12.00422425]
[1747188264472,12.00422425,182.46,182.4,12.00422425]
[1747188264662,18.56152425,182.52,182.4,12.00422425]
[1747188264863,12.00422425,182.46,182.41,12.00422425]
[1747188265060,46.56768749,182.53,182.4,26.0]
[1747188265258,12.00422425,182.51,182.46,12.00422425]
[1747188265458,12.00422425,182.51,182.45,12.00422425]
[1747188266183,46.56768749,182.53,182.39,1.5622]
[1747188266184,12.00422425,182.48,182.39,1.5622]
[1747188266386,12.00422425,182.49,182.43,12.00422425]
[1747188266764,19.17808218,182.5,182.42,12.00422425]
[1747188266967,12.00422425,182.49,182.43,12.00422425]
[1747188267194,19.17808218,182.5,182.4,0.28432314]
[1747188267195,5.47945205,182.5,182.4,0.28432314]
[1747188267393,5.47855147,182.53,182.49,12.00422425]
[1747188267701,5.47855147,182.53,182.48,12.00422425]
[1747188267878,31.17915439,182.53,182.44,26.0]
[1747188268301,12.00422425,182.52,182.47,12.00422425]
[1747188268606,12.00422425,182.49,182.44,12.00422425]
[1747188268772,19.17493014,182.53,182.4,26.0]
[1747188268972,12.00422425,182.49,182.4,26.0]
[1747188269168,12.14638582,182.52,182.41,12.00422425]
[1747188269398,12.00422425,182.46,182.41,12.00422425]
[1747188269591,12.14638582,182.52,182.41,12.00422425]
[1747188269779,12.00422425,182.47,182.42,12.00422425]
[1747188270175,5.48065329,182.46,182.41,12.00422425]
[1747188270695,5.48065329,182.46,182.4,26.0]
[1747188270878,5.48065329,182.46,182.42,12.00422425]
[1747188271279,5.48065329,182.46,182.4,26.0]
[1747188271501,5.48065329,182.46,182.43,12.00422425]
[1747188271889,5.48065329,182.46,182.4,26.0]
[1747188272093,12.00422425,182.46,182.39,1.5622]
[1747188272408,12.00422425,182.44,182.39,13.56642425]
[1747188272602,19.18123526,182.47,182.39,13.56642425]
[1747188272805,12.00422425,182.44,182.39,13.56642425]
[1747188273178,12.00422425,182.44,182.38,12.00422425]
[1747188273380,12.00422425,182.42,182.37,6.0434]
[1747188273576,12.00422425,182.42,182.37,18.04762425]
[1747188273888,12.00422425,182.43,182.38,12.00422425]
[1747188274206,5.48185505,182.42,182.37,12.00422425]
[1747188274392,5.48185505,182.42,182.38,12.00422425]
[1747188274712,5.48095368,182.45,182.41,12.00422425]
[1747188274901,5.48035293,182.47,182.44,12.00422425]
[1747188275219,5.48035293,182.47,182.45,12.00422425]
[1747188276218,5.47975231,182.49,182.45,12.00422425]
[1747188277172,19.17913309,182.49,182.44,12.00422425]
[1747188277379,12.00422425,182.47,182.41,12.00422425]
[1747188277685,12.00422425,182.46,182.41,12.00422425]
[1747188278186,12.00422425,182.46,182.4,12.00422425]
[1747188278384,12.00422425,182.44,182.37,26.0]
[1747188278576,12.00422425,182.44,182.39,12.00422425]
[1747188279111,12.00422425,182.46,182.41,12.00422425]
[1747188280191,5.48095368,182.45,182.41,12.00422425]
[1747188280393,5.48095368,182.45,182.42,12.00422425]
[1747188280707,5.47945205,182.5,182.44,12.00422425]
[1747188280877,19.17808218,182.5,182.45,12.00422425]
[1747188281073,12.00422425,182.49,182.44,12.00422425]
[1747188281495,12.00422425,182.48,182.43,12.00422425]
[1747188282187,5.48035293,182.47,182.43,12.00422425]
[1747188282790,5.48035293,182.47,182.44,12.00422425]
[1747188283187,5.48035293,182.47,182.45,12.00422425]
[1747188284008,5.47975231,182.49,182.45,12.00422425]
[1747188284499,5.47975231,182.49,182.46,12.00422425]
[1747188284797,5.47975231,182.49,182.42,3.2890656]
[1747188284798,5.47975231,182.49,182.47,12.00422425]
[1747188285203,5.47885163,182.52,182.48,12.00422425]
[1747188285407,5.47885163,182.52,182.49,12.00422425]
[1747188285786,5.47885163,182.52,182.5,12.00422425]
[1747188286107,5.47825134,182.54,182.49,12.00422425]
[1747188286500,19.17387969,182.54,182.49,12.00422425]
[1747188286803,31.17810394,182.54,182.49,12.00422425]
[1747188287177,19.17387969,182.54,182.49,12.00422425]
[1747188287381,31.17810394,182.54,182.49,12.00422425]
[1747188288605,19.17387969,182.54,182.49,12.00422425]
[1747188289704,19.17387969,182.54,182.5,12.00422425]
[1747188290314,19.17387969,182.54,182.49,12.00422425]
[1747188291682,5.47825134,182.54,182.51,12.00422425]
[1747188292590,19.17387969,182.54,182.46,26.0]
[1747188292795,19.17387969,182.54,182.5,12.00422425]
[1747188294009,19.17387969,182.54,182.46,26.0]
[1747188294206,19.17387969,182.54,182.5,12.00422425]
[1747188294612,5.47825134,182.54,182.51,12.00422425]
[1747188295217,5.47765118,182.56,182.53,12.00422425]
[1747188295605,5.47765118,182.56,182.54,12.00422425]
[1747188295787,5.47765118,182.56,182.55,12.00422425]
[1747188296312,5.47675119,182.59,182.55,12.00422425]
[1747188296815,5.47675119,182.59,182.56,12.00422425]
[1747188297018,5.47585149,182.62,182.58,12.00422425]
[1747188297183,5.47585149,182.62,182.54,34.1735]
[1747188297388,5.47585149,182.62,182.57,12.00422425]
[1747188297589,5.47585149,182.62,182.54,34.1735]
[1747188297814,5.47585149,182.62,182.58,12.00422425]
[1747188298485,19.16128324,182.66,182.58,12.00422425]
[1747188298689,12.00422425,182.65,182.59,12.00422425]
[1747188298908,33.86716676,182.66,182.61,12.00422425]
[1747188299113,21.86294251,182.66,182.61,12.00422425]
[1747188299314,33.86716676,182.66,182.6,12.00422425]
[1747188299812,12.00422425,182.65,182.6,12.00422425]
[1747188300397,19.16338151,182.64,182.55,26.42648471]
[1747188300600,19.16338151,182.64,182.59,12.00422425]
[1747188300787,19.16338151,182.64,182.6,12.00422425]
[1747188301815,13.68812965,182.64,182.6,12.00422425]
[1747188302418,12.00422425,182.63,182.57,12.00422425]
[1747188302592,13.68812965,182.64,182.55,26.0]